lending/lending_fUSD_20250425
["ID","MTS","AMOUNT","RATE_DAILY","PERIOD"]
[358919704,1745545438240,-797.02,0.00049863,30]
[358919705,1745545438282,-1168.97,0.00049863,30]
[358919706,1745545438321,-1038.01,0.00049863,30]
[358919707,1745545438358,-690.29,0.00049863,30]
[358919708,1745545438400,-1114.87,0.00049863,30]
[358919709,1745545438439,-500.0,0.00049863,30]
[358919710,1745545438476,-500.0,0.00049863,30]
[358919711,1745545438515,-717.48,0.00049863,30]
[358919712,1745545438551,-1062.7,0.00049863,30]
[358919713,1745545438590,-1633.77,0.00049863,30]
[358919714,1745545438628,-500.0,0.00049863,30]
[358919715,1745545438667,-1248.52,0.00049863,30]
[358919716,1745545438708,-633.48,0.00049863,30]
[358919717,1745545438745,-500.0,0.00049863,30]
[358919718,1745545438784,-500.0,0.00049863,30]
[358919719,1745545438828,-2641.69,0.00049863,30]
[358919720,1745545438866,-500.0,0.00049863,30]
[358919721,1745545438906,-2881.29,0.00049863,30]
[358919722,1745545438945,-500.0,0.00049863,30]
[358919723,1745545438984,-500.0,0.00049863,30]
[358919724,1745545439022,-500.0,0.00049863,30]
[358919725,1745545439058,-809.25,0.00049863,30]
[358919726,1745545439096,-975.25,0.00049863,30]
[358919727,1745545439134,-10337.63,0.00049863,30]
[358919728,1745545439173,-3067.16,0.00049863,30]
[358919729,1745545439209,-1318.12,0.00049863,30]
[358919730,1745545439248,-507.43,0.00049863,30]
[358919731,1745545439286,-570.23,0.00049863,30]
[358919732,1745545439325,-627.41,0.00049863,30]
[358919733,1745545439362,-500.0,0.00049863,30]
[358919734,1745545439400,-500.0,0.00049863,30]
[358919735,1745545439439,-679.54,0.00049863,30]
[358919736,1745545439479,-1252.46,0.00049863,30]
[358919737,1745545439518,-500.0,0.00049863,30]
[358919738,1745545439554,-575.58,0.00049863,30]
[358919739,1745545439591,-2182.67,0.00049863,30]
[358919740,1745545439633,-521.29,0.00049863,30]
[358919741,1745545439670,-1867.96,0.00049863,30]
[358919742,1745545439706,-1074.64,0.00049863,30]
[358919743,1745545439742,-3545.51,0.00049863,30]
[358919744,1745545439778,-728.08,0.00049863,30]
[358919745,1745545439814,-672.38,0.00049863,30]
[358919746,1745545439850,-500.0,0.00049863,30]
[358919747,1745545439887,-1720.77,0.00049863,30]
[358919748,1745545439925,-3286.78,0.00049863,30]
[358919749,1745545439963,-500.0,0.00049863,30]
[358919750,1745545440004,-1180.4,0.00049863,30]
[358919751,1745545440045,-500.0,0.00049863,30]
[358919752,1745545440089,-500.0,0.00049863,30]
[358919753,1745545440131,-502.18,0.00049863,30]
[358919754,1745545440177,-3075.34,0.00049863,30]
[358919755,1745545440223,-1837.7,0.00049863,30]
[358919756,1745545440267,-3115.11,0.00049863,30]
[358919757,1745545440310,-500.0,0.00049863,30]
[358919758,1745545440641,-1656.27,0.00049863,30]
[358919759,1745545440684,-1178.97,0.00049863,30]
[358919760,1745545440726,-1741.99,0.00049863,30]
[358919761,1745545440781,-919.24,0.00049863,30]
[358919762,1745545440825,-500.0,0.00049863,30]
[358919763,1745545440866,-2447.99,0.00049863,30]
[358919764,1745545440907,-500.0,0.00049863,30]
[358919765,1745545440949,-8924.7,0.00049863,30]
[358919766,1745545440989,-500.0,0.00049863,30]
[358919767,1745545441028,-1868.99,0.00049863,30]
[358919768,1745545441068,-770.76,0.00049863,30]
[358919769,1745545441109,-818.8,0.00049863,30]
[358919770,1745545441149,-500.0,0.00049863,30]
[358919771,1745545441189,-1584.41,0.00049863,30]
[358919772,1745545441228,-1480.64,0.00049863,30]
[358919773,1745545441270,-572.56,0.00049863,30]
[358919774,1745545441307,-715.9,0.00049863,30]
[358919775,1745545441344,-500.0,0.00049863,30]
[358919776,1745545441383,-655.98,0.00049863,30]
[358919777,1745545441423,-500.0,0.00049863,30]
[358919778,1745545441464,-500.0,0.00049863,30]
[358919779,1745545441512,-786.19,0.00049863,30]
[358919780,1745545441555,-500.0,0.00049863,30]
[358919781,1745545441596,-733.82,0.00049863,30]
[358919782,1745545441636,-760.58,0.00049863,30]
[358919783,1745545441674,-500.0,0.00049863,30]
[358919784,1745545441713,-1510.41,0.00049863,30]
[358919785,1745545441751,-515.46726727,0.00049863,30]
[358919786,1745545441789,-825.68,0.00049863,30]
[358919787,1745545441827,-500.0,0.00049863,30]
[358919788,1745545441868,-1091.92,0.00049863,30]
[358919789,1745545441909,-500.0,0.00049863,30]
[358919790,1745545441956,-500.0,0.00049863,30]
[358919791,1745545441997,-3345.59,0.00049863,30]
[358919792,1745545442037,-500.0,0.00049863,30]
[358919793,1745545442076,-964.01,0.00049863,30]
[358919794,1745545442116,-151.0,0.00049863,120]
[358919795,1745545442158,-500.0,0.00049863,30]
[358919796,1745545442201,-579.02,0.00049863,30]
[358919797,1745545442242,-541.47221659,0.00049863,30]
[358919798,1745545442287,-500.0,0.00049863,30]
[358919799,1745545442327,-3181.51,0.00049863,30]
[358919800,1745545442366,-1127.53,0.00049863,30]
[358919801,1745545442409,-1405.73,0.00049863,30]
[358919802,1745545442448,-918.96,0.00049863,30]
[358919803,1745545442486,-970.8,0.00049863,30]
[358919804,1745545442524,-291.732012,0.00049863,120]
[358919805,1745545442562,-1253.7,0.00049863,30]
[358919806,1745545442600,-500.0,0.00049863,30]
[358919807,1745545442637,-585.26572592,0.00049863,30]
[358919808,1745545442675,-1119.69,0.00049863,30]
[358919809,1745545442713,-500.0,0.00049863,30]
[358919810,1745545442751,-616.95,0.00049863,30]
[358919811,1745545442789,-1770.63,0.00049863,30]
[358919812,1745545442827,-500.0,0.00049863,30]
[358919813,1745545442866,-2204.65,0.00049863,30]
[358919814,1745545442904,-1266.86,0.00049863,30]
[358919815,1745545442944,-735.34,0.00049863,30]
[358919816,1745545442984,-845.57,0.00049863,30]
[358919817,1745545443026,-506.82,0.00049863,30]
[358919818,1745545443063,-771.61,0.00049863,30]
[358919819,1745545443102,-797.78,0.00049863,30]
[358919820,1745545443142,-500.0,0.00049863,30]
[358919821,1745545443182,-500.0,0.00049863,30]
[358919822,1745545443221,-1617.03,0.00049863,30]
[358919823,1745545443260,-661.15,0.00049863,30]
[358919824,1745545443300,-500.0,0.00049863,30]
[358919825,1745545443341,-1431.22,0.00049863,30]
[358919826,1745545443384,-899.41,0.00049863,30]
[358919827,1745545443426,-1145.2,0.00049863,30]
[358919828,1745545443468,-823.48,0.00049863,30]
[358919829,1745545443512,-500.0,0.00049863,30]
[358919830,1745545443556,-680.92,0.00049863,30]
[358919831,1745545443602,-511.66,0.00049863,30]
[358919832,1745545443647,-2134.81,0.00049863,30]
[358919833,1745545443690,-503.98,0.00049863,30]
[358919834,1745545443733,-949.81,0.00049863,30]
[358919835,1745545443779,-500.0,0.00049863,30]
[358919836,1745545443822,-1317.65,0.00049863,30]
[358919837,1745545443864,-520.85,0.00049863,30]
[358919838,1745545443905,-500.0,0.00049863,30]
[358919839,1745545443949,-1006.04,0.00049863,30]
[358919840,1745545443990,-1128.15,0.00049863,30]
[358919841,1745545444032,-500.0,0.00049863,30]
[358919842,1745545444074,-34592.57,0.00049863,30]
[358919843,1745545444117,-742.75,0.00049863,30]
[358919844,1745545444157,-500.0,0.00049863,30]
[358919845,1745545444197,-500.0,0.00049863,30]
[358919846,1745545444237,-500.0,0.00049863,30]
[358919847,1745545444278,-1846.29,0.00049863,30]
[358919848,1745545444320,-581.2,0.00049863,30]
[358919849,1745545444359,-748.35,0.00049863,30]
[358919850,1745545444400,-1159.23,0.00049863,30]
[358919851,1745545444443,-575.34996929,0.00049863,30]
[358919852,1745545444487,-500.0,0.00049863,30]
[358919853,1745545444531,-1415.98,0.00049863,30]
[358919854,1745545444572,-17345.41,0.00049863,30]
[358919855,1745545444614,-500.0,0.00049863,30]
[358919856,1745545444656,-151.0,0.00049863,120]
[358919857,1745545444698,-945.17,0.00049863,30]
[358919858,1745545444739,-500.0,0.00049863,30]
[358919859,1745545444780,-628.22,0.00049863,30]
[358919860,1745545444820,-601.01,0.00049863,30]
[358919861,1745545444858,-521.14,0.00049863,30]
[358919862,1745545445125,-500.0,0.00049863,30]
[358919863,1745545445169,-909.31,0.00049863,30]
[358919864,1745545445210,-151.0,0.00049863,120]
[358919865,1745545445251,-1556.81,0.00049863,30]
[358919866,1745545445289,-345.76922181,0.00049863,30]
[358919867,1745545445327,-500.0,0.00049863,30]
[358919868,1745545445367,-1076.02,0.00049863,30]
[358919869,1745545445408,-206.896493,0.00049863,120]
[358919870,1745545445445,-551.43,0.00049863,30]
[358919871,1745545445485,-560.99,0.00049863,30]
[358919872,1745545445524,-500.0,0.00049863,30]
[358919873,1745545445564,-500.0,0.00049863,30]
[358919874,1745545445603,-743.83,0.00049863,30]
[358919875,1745545445640,-612.94633706,0.00049863,30]
[358919876,1745545445678,-500.0,0.00049863,30]
[358919877,1745545445722,-206.896493,0.00049863,120]
[358919878,1745545445760,-151.0,0.00049863,120]
[358919879,1745545445801,-716.88,0.00049863,30]
[358919880,1745545445840,-500.0,0.00049863,30]
[358919881,1745545445880,-508.77280176,0.00049863,30]
[358919882,1745545445921,-6518.42,0.00049863,30]
[358919883,1745545445963,-6050.470095,0.00049863,30]
[358919884,1745545446001,-500.0,0.00049863,30]
[358919885,1745545446041,-500.0,0.00049863,30]
[358919886,1745545446081,-500.0,0.00049863,30]
[358919887,1745545446119,-500.0,0.00049863,30]
[358919888,1745545446160,-500.0,0.00049863,30]
[358919889,1745545446200,-1077.87,0.00049863,30]
[358919890,1745545446237,-500.0,0.00049863,30]
[358919891,1745545446274,-599.09,0.00049863,30]
[358919892,1745545446312,-516.8,0.00049863,30]
[358919893,1745545446350,-840.45,0.00049863,30]
[358919894,1745545446387,-535.24,0.00049863,30]
[358919895,1745545446424,-500.0,0.00049863,30]
[358919896,1745545446461,-500.0,0.00049863,30]
[358919897,1745545446499,-1206.69,0.00049863,30]
[358919898,1745545446539,-530.1,0.00049863,30]
[358919899,1745545446577,-500.0,0.00049863,30]
[358919900,1745545446616,-1653.86,0.00049863,30]
[358919901,1745545446657,-1755.79,0.00049863,30]
[358919902,1745545446696,-500.0,0.00049863,30]
[358919903,1745545446735,-780.2,0.00049863,30]
[358919904,1745545446776,-606.95,0.00049863,30]
[358919905,1745545446818,-1333.8,0.00049863,30]
[358919906,1745545446859,-574.35,0.00049863,30]
[358919907,1745545446898,-782.478522,0.00049863,30]
[358919908,1745545446938,-500.0,0.00049863,30]
[358919909,1745545446977,-500.0,0.00049863,30]
[358919910,1745545447014,-2000.0,0.00049863,30]
[358919911,1745545447051,-500.0,0.00049863,30]
[358919912,1745545447088,-500.0,0.00049863,30]
[358919913,1745545447127,-583.66,0.00049863,120]
[358919914,1745545447166,-1414.99,0.00049863,30]
[358919915,1745545447208,-1072.46,0.00049863,30]
[358919916,1745545447247,-500.0,0.00049863,30]
[358919917,1745545447285,-1021.91,0.00049863,30]
[358919918,1745545447322,-500.0,0.00049863,30]
[358919919,1745545447361,-1937.76,0.00049863,30]
[358919920,1745545447401,-500.0,0.00049863,30]
[358919921,1745545447439,-500.0,0.00049863,30]
[358919922,1745545447477,-500.0,0.00049863,30]
[358919923,1745545447517,-500.0,0.00049863,30]
[358919924,1745545447555,-500.0,0.00049863,30]
[358919925,1745545447591,-500.0,0.00049863,30]
[358919926,1745545447627,-1156.26,0.00049863,30]
[358919927,1745545447663,-500.0,0.00049863,30]
[358919928,1745545447700,-759.106322,0.00049863,30]
[358919929,1745545447735,-821.73,0.00049863,30]
[358919930,1745545447771,-809.65,0.00049863,30]
[358919931,1745545447806,-500.0,0.00049863,30]
[358919932,1745545447843,-500.0,0.00049863,30]
[358919933,1745545447882,-1231.82,0.00049863,30]
[358919934,1745545447922,-500.0,0.00049863,30]
[358919935,1745545447959,-1214.56,0.00049863,30]
[358919936,1745545448001,-500.0,0.00049863,30]
[358919937,1745545448041,-2849.2,0.00049863,30]
[358919938,1745545448080,-3096.48,0.00049863,30]
[358919939,1745545448118,-500.0,0.00049863,30]
[358919940,1745545448158,-6517.27,0.00049863,30]
[358919941,1745545448198,-500.0,0.00049863,30]
[358919942,1745545448236,-500.0,0.00049863,30]
[358919943,1745545448276,-642.502757,0.00049863,120]
[358919944,1745545448313,-1964.64,0.00049863,30]
[358919945,1745545448351,-500.0,0.00049863,30]
[358919946,1745545448387,-528.4,0.00049863,30]
[358919947,1745545448424,-500.0,0.00049863,30]
[358919948,1745545448462,-500.0,0.00049863,30]
[358919949,1745545448502,-5076.34,0.00049863,30]
[358919950,1745545448540,-642.502757,0.00049863,120]
[358919951,1745545448577,-3017.9,0.00049863,30]
[358919952,1745545448615,-500.0,0.00049863,30]
[358919953,1745545448654,-1363.63,0.00049863,30]
[358919954,1745545448693,-572.21,0.00049863,30]
[358919955,1745545448732,-500.0,0.00049863,30]
[358919956,1745545448773,-456.0,0.0005,120]
[358919957,1745545448812,-578.0,0.00050066,120]
[358919958,1745545448852,-1757.16,0.00050136,30]
[358919959,1745545448891,-500.0,0.00050136,30]
[358919960,1745545448931,-500.0,0.00050136,30]
[358919961,1745545448967,-500.0,0.00050136,30]
[358919962,1745545449003,-500.0,0.00050136,30]
[358919963,1745545449039,-1673.18,0.00050136,30]
[358919964,1745545449075,-797.02,0.00050136,30]
[358919965,1745545449115,-1168.97,0.00050136,30]
[358919966,1745545449395,-1038.01,0.00050136,30]
[358919967,1745545449439,-690.29,0.00050136,30]
[358919968,1745545449482,-1114.87,0.00050136,30]
[358919969,1745545449525,-500.0,0.00050136,30]
[358919970,1745545449565,-500.0,0.00050136,30]
[358919971,1745545449607,-717.48,0.00050136,30]
[358919972,1745545449646,-1062.7,0.00050136,30]
[358919973,1745545449686,-1633.77,0.00050136,30]
[358919974,1745545449726,-500.0,0.00050136,30]
[358919975,1745545449767,-1248.52,0.00050136,30]
[358919976,1745545449807,-633.48,0.00050136,30]
[358919977,1745545449847,-500.0,0.00050136,30]
[358919978,1745545449888,-500.0,0.00050136,30]
[358919979,1745545449929,-2641.69,0.00050136,30]
[358919980,1745545449972,-500.0,0.00050136,30]
[358919981,1745545450013,-2881.29,0.00050136,30]
[358919982,1745545450052,-500.0,0.00050136,30]
[358919983,1745545450089,-500.0,0.00050136,30]
[358919984,1745545450127,-500.0,0.00050136,30]
[358919985,1745545450166,-809.25,0.00050136,30]
[358919986,1745545450205,-975.25,0.00050136,30]
[358919987,1745545450243,-10337.63,0.00050136,30]
[358919988,1745545450282,-3067.16,0.00050136,30]
[358919989,1745545450320,-1318.12,0.00050136,30]
[358919990,1745545450356,-507.43,0.00050136,30]
[358919991,1745545450396,-570.23,0.00050136,30]
[358919992,1745545450436,-627.41,0.00050136,30]
[358919993,1745545450476,-500.0,0.00050136,30]
[358919994,1745545450517,-500.0,0.00050136,30]
[358919995,1745545450557,-679.54,0.00050136,30]
[358919996,1745545450598,-1252.46,0.00050136,30]
[358919997,1745545450638,-500.0,0.00050136,30]
[358919998,1745545450678,-575.58,0.00050136,30]
[358919999,1745545450718,-2182.67,0.00050136,30]
[358920000,1745545450757,-521.29,0.00050136,30]
[358920001,1745545450796,-1867.96,0.00050136,30]
[358920002,1745545450834,-1074.64,0.00050136,30]
[358920003,1745545450872,-3545.51,0.00050136,30]
[358920004,1745545450912,-728.08,0.00050136,30]
[358920005,1745545450954,-672.38,0.00050136,30]
[358920006,1745545450992,-500.0,0.00050136,30]
[358920007,1745545451028,-1720.77,0.00050136,30]
[358920008,1745545451063,-3286.78,0.00050136,30]
[358920009,1745545451100,-500.0,0.00050136,30]
[358920010,1745545451138,-1180.4,0.00050136,30]
[358920011,1745545451174,-500.0,0.00050136,30]
[358920012,1745545451210,-500.0,0.00050136,30]
[358920013,1745545451244,-502.18,0.00050136,30]
[358920014,1745545451280,-3075.34,0.00050136,30]
[358920015,1745545451316,-1837.7,0.00050136,30]
[358920016,1745545451351,-3115.11,0.00050136,30]
[358920017,1745545451390,-500.0,0.00050136,30]
[358920018,1745545451429,-1656.27,0.00050136,30]
[358920019,1745545451466,-1178.97,0.00050136,30]
[358920020,1745545451502,-1741.99,0.00050136,30]
[358920021,1745545451537,-919.24,0.00050136,30]
[358920022,1745545451574,-500.0,0.00050136,30]
[358920023,1745545451609,-2447.99,0.00050136,30]
[358920024,1745545451647,-500.0,0.00050136,30]
[358920025,1745545451684,-8924.7,0.00050136,30]
[358920026,1745545451720,-500.0,0.00050136,30]
[358920027,1745545451756,-1868.99,0.00050136,30]
[358920028,1745545451792,-770.76,0.00050136,30]
[358920029,1745545451829,-818.8,0.00050136,30]
[358920030,1745545451864,-500.0,0.00050136,30]
[358920031,1745545451901,-1584.41,0.00050136,30]
[358920032,1745545451941,-1480.64,0.00050136,30]
[358920033,1745545451975,-572.56,0.00050136,30]
[358920034,1745545452009,-715.9,0.00050136,30]
[358920035,1745545452044,-500.0,0.00050136,30]
[358920036,1745545452078,-655.98,0.00050136,30]
[358920037,1745545452114,-500.0,0.00050136,30]
[358920038,1745545452151,-500.0,0.00050136,30]
[358920039,1745545452190,-786.19,0.00050136,30]
[358920040,1745545452228,-500.0,0.00050136,30]
[358920041,1745545452265,-733.82,0.00050136,30]
[358920042,1745545452305,-760.58,0.00050136,30]
[358920043,1745545452343,-500.0,0.00050136,30]
[358920044,1745545452383,-1510.41,0.00050136,30]
[358920045,1745545452422,-825.68,0.00050136,30]
[358920046,1745545452463,-500.0,0.00050136,30]
[358920047,1745545452502,-1091.92,0.00050136,30]
[358920048,1745545452540,-500.0,0.00050136,30]
[358920049,1745545452578,-500.0,0.00050136,30]
[358920050,1745545452616,-3345.59,0.00050136,30]
[358920051,1745545452654,-500.0,0.00050136,30]
[358920052,1745545452693,-964.01,0.00050136,30]
[358920053,1745545452732,-500.0,0.00050136,30]
[358920054,1745545452772,-579.02,0.00050136,30]
[358920055,1745545452810,-500.0,0.00050136,30]
[358920056,1745545452849,-3181.51,0.00050136,30]
[358920057,1745545452887,-1127.53,0.00050136,30]
[358920058,1745545452927,-1405.73,0.00050136,30]
[358920059,1745545452964,-918.96,0.00050136,30]
[358920060,1745545453002,-970.8,0.00050136,30]
[358920061,1745545453038,-1253.7,0.00050136,30]
[358920062,1745545453074,-500.0,0.00050136,30]
[358920063,1745545453112,-1119.69,0.00050136,30]
[358920064,1745545453149,-500.0,0.00050136,30]
[358920065,1745545453188,-616.95,0.00050136,30]
[358920066,1745545453226,-1770.63,0.00050136,30]
[358920067,1745545453264,-500.0,0.00050136,30]
[358920068,1745545453302,-2204.65,0.00050136,30]
[358920069,1745545453339,-735.34,0.00050136,30]
[358920070,1745545453581,-845.57,0.00050136,30]
[358920071,1745545453624,-506.82,0.00050136,30]
[358920072,1745545453667,-771.61,0.00050136,30]
[358920073,1745545453709,-797.78,0.00050136,30]
[358920074,1745545453752,-500.0,0.00050136,30]
[358920075,1745545453792,-500.0,0.00050136,30]
[358920076,1745545453834,-1617.03,0.00050136,30]
[358920077,1745545453875,-661.15,0.00050136,30]
[358920078,1745545453917,-500.0,0.00050136,30]
[358920079,1745545453961,-1431.22,0.00050136,30]
[358920080,1745545454002,-899.41,0.00050136,30]
[358920081,1745545454041,-1145.2,0.00050136,30]
[358920082,1745545454080,-823.48,0.00050136,30]
[358920083,1745545454122,-500.0,0.00050136,30]
[358920084,1745545454163,-680.92,0.00050136,30]
[358920085,1745545454204,-511.66,0.00050136,30]
[358920086,1745545454244,-2134.81,0.00050136,30]
[358920087,1745545454282,-503.98,0.00050136,30]
[358920088,1745545454322,-949.81,0.00050136,30]
[358920089,1745545454359,-500.0,0.00050136,30]
[358920090,1745545454398,-520.85,0.00050136,30]
[358920091,1745545454438,-1317.65,0.00050136,30]
[358920092,1745545454478,-500.0,0.00050136,30]
[358920093,1745545454519,-1006.04,0.00050136,30]
[358920094,1745545454560,-500.0,0.00050136,30]
[358920095,1745545454599,-34592.57,0.00050136,30]
[358920096,1745545454641,-1128.15,0.00050136,30]
[358920097,1745545454682,-742.75,0.00050136,30]
[358920098,1745545454721,-500.0,0.00050136,30]
[358920099,1745545454760,-500.0,0.00050136,30]
[358920100,1745545454799,-500.0,0.00050136,30]
[358920101,1745545454838,-1846.29,0.00050136,30]
[358920102,1745545454877,-581.2,0.00050136,30]
[358920103,1745545454918,-748.35,0.00050136,30]
[358920104,1745545454961,-1159.23,0.00050136,30]
[358920105,1745545455002,-500.0,0.00050136,30]
[358920106,1745545455043,-1415.98,0.00050136,30]
[358920107,1745545455083,-17345.41,0.00050136,30]
[358920108,1745545455123,-500.0,0.00050136,30]
[358920109,1745545455163,-945.17,0.00050136,30]
[358920110,1745545455201,-500.0,0.00050136,30]
[358920111,1745545455237,-628.22,0.00050136,30]
[358920112,1745545455274,-601.01,0.00050136,30]
[358920113,1745545455314,-521.14,0.00050136,30]
[358920114,1745545455354,-500.0,0.00050136,30]
[358920115,1745545455392,-909.31,0.00050136,30]
[358920116,1745545455432,-151.0,0.00050136,120]
[358920117,1745545455470,-1556.81,0.00050136,30]
[358920118,1745545455509,-500.0,0.00050136,30]
[358920119,1745545455547,-1076.02,0.00050136,30]
[358920120,1745545455585,-206.896493,0.00050136,120]
[358920121,1745545455622,-551.43,0.00050136,30]
[358920122,1745545455660,-560.99,0.00050136,30]
[358920123,1745545455699,-500.0,0.00050136,30]
[358920124,1745545455738,-500.0,0.00050136,30]
[358920125,1745545455777,-743.83,0.00050136,30]
[358920126,1745545455815,-500.0,0.00050136,30]
[358920127,1745545455853,-206.896493,0.00050136,120]
[358920128,1745545455891,-151.0,0.00050136,120]
[358920129,1745545455929,-716.88,0.00050136,30]
[358920130,1745545455968,-500.0,0.00050136,30]
[358920131,1745545456008,-6518.42,0.00050136,30]
[358920132,1745545456046,-6050.470095,0.00050136,30]
[358920133,1745545456084,-500.0,0.00050136,30]
[358920134,1745545456122,-500.0,0.00050136,30]
[358920135,1745545456159,-500.0,0.00050136,30]
[358920136,1745545456196,-500.0,0.00050136,30]
[358920137,1745545456233,-500.0,0.00050136,30]
[358920138,1745545456271,-1077.87,0.00050136,30]
[358920139,1745545456307,-500.0,0.00050136,30]
[358920140,1745545456345,-599.09,0.00050136,30]
[358920141,1745545456383,-516.8,0.00050136,30]
[358920142,1745545456422,-840.45,0.00050136,30]
[358920143,1745545456461,-535.24,0.00050136,30]
[358920144,1745545456500,-266.12985753,0.00050136,30]
[358920145,1745545456540,-500.0,0.00050136,30]
[358920146,1745545456580,-1206.69,0.00050136,30]
[358920147,1745545456620,-530.1,0.00050136,30]
[358920148,1745545456659,-500.0,0.00050136,30]
[358920149,1745545456698,-1653.86,0.00050136,30]
[358920150,1745545456736,-1755.79,0.00050136,30]
[358920151,1745545456776,-500.0,0.00050136,30]
[358920152,1745545456815,-780.2,0.00050136,30]
[358920153,1745545456854,-606.95,0.00050136,30]
[358920154,1745545456892,-1333.8,0.00050136,30]
[358920155,1745545456931,-574.35,0.00050136,30]
[358920156,1745545456969,-782.478522,0.00050136,30]
[358920157,1745545457009,-500.0,0.00050136,30]
[358920158,1745545457047,-500.0,0.00050136,30]
[358920159,1745545457084,-1335.68113535,0.00050136,30]
[358920160,1745545457122,-500.0,0.00050136,30]
[358920161,1745545457159,-500.0,0.00050136,30]
[358920162,1745545457196,-583.66,0.00050136,120]
[358920163,1745545457234,-1414.99,0.00050136,30]
[358920164,1745545457270,-1072.46,0.00050136,30]
[358920165,1745545457308,-500.0,0.00050136,30]
[358920166,1745545457342,-1021.91,0.00050136,30]
[358920167,1745545457376,-500.0,0.00050136,30]
[358920168,1745545457413,-1937.76,0.00050136,30]
[358920169,1745545457451,-500.0,0.00050136,30]
[358920170,1745545457489,-500.0,0.00050136,30]
[358920171,1745545457527,-500.0,0.00050136,30]
[358920172,1745545457565,-500.0,0.00050136,30]
[358920173,1745545457604,-581.36292934,0.00050136,30]
[358920174,1745545457857,-500.0,0.00050136,30]
[358920175,1745545457898,-1156.26,0.00050136,30]
[358920176,1745545457940,-500.0,0.00050136,30]
[358920177,1745545457980,-759.106322,0.00050136,30]
[358920178,1745545458018,-821.73,0.00050136,30]
[358920179,1745545458056,-809.65,0.00050136,30]
[358920180,1745545458093,-500.0,0.00050136,30]
[358920181,1745545458131,-500.0,0.00050136,30]
[358920182,1745545458169,-1231.82,0.00050136,30]
[358920183,1745545458206,-500.0,0.00050136,30]
[358920184,1745545458245,-1214.56,0.00050136,30]
[358920185,1745545458283,-500.0,0.00050136,30]
[358920186,1745545458323,-2849.2,0.00050136,30]
[358920187,1745545458362,-3096.48,0.00050136,30]
[358920188,1745545458401,-500.0,0.00050136,30]
[358920189,1745545458441,-6517.27,0.00050136,30]
[358920190,1745545458480,-192.7341401,0.00050136,30]
[358920191,1745545458519,-500.0,0.00050136,30]
[358920192,1745545458557,-1964.64,0.00050136,30]
[358920193,1745545458613,-342.6086548,0.00050136,30]
[358920194,1745545458657,-642.502757,0.00050136,120]
[358920195,1745545458699,-528.4,0.00050136,30]
[358920196,1745545458742,-597.27883301,0.00050136,30]
[358920197,1745545458784,-500.0,0.00050136,30]
[358920198,1745545458825,-5076.34,0.00050136,30]
[358920199,1745545458867,-642.502757,0.00050136,120]
[358920200,1745545458912,-3017.9,0.00050136,30]
[358920201,1745545458954,-500.0,0.00050136,30]
[358920202,1745545458995,-1363.63,0.00050136,30]
[358920203,1745545459035,-572.21,0.00050136,30]